bitfinex/quotes_BTCUSD_20230117
["timestamp","ask_amount","ask_price","bid_price","bid_amount"]
[1673953706724,0.34471072,21150.0,21149.0,2.95700305]
[1673953706950,0.02284072,21150.0,21149.0,3.23993787]
[1673953707440,0.02284072,21150.0,21149.0,3.63226892]
[1673953707682,0.02284072,21150.0,21149.0,3.98627348]
[1673953707931,0.02284072,21150.0,21149.0,3.2595856]
[1673953708177,0.02284072,21150.0,21149.0,3.61359016]
[1673953709231,0.02284072,21150.0,21149.0,3.2595856]
[1673953709451,0.02284072,21150.0,21149.0,3.63226892]
[1673953709731,0.02284072,21150.0,21149.0,3.47168623]
[1673953709979,0.02284072,21150.0,21149.0,3.55310649]
[1673953710228,0.02284072,21150.0,21149.0,3.47168623]
[1673953711528,0.02284072,21150.0,21149.0,1.87162725]
[1673953711782,0.23595072,21150.0,21149.0,1.87162725]
[1673953712379,0.23595072,21150.0,21149.0,2.01302283]
[1673953712642,0.23595072,21150.0,21149.0,2.17162725]
[1673953714713,0.23595072,21150.0,21149.0,1.721505]
[1673953714714,0.34775072,21150.0,21149.0,1.721505]
[1673953716009,0.34811026,21150.0,21149.0,1.721505]
[1673953716297,0.34775072,21150.0,21149.0,1.721505]
[1673953716779,0.34775072,21150.0,21149.0,1.421505]
[1673953716997,0.34775072,21150.0,21149.0,1.721505]
[1673953717976,0.34811026,21150.0,21149.0,1.421505]
[1673953718223,0.34775072,21150.0,21149.0,1.721505]
[1673953718442,0.34775072,21150.0,21149.0,1.421505]
[1673953718961,0.34811026,21150.0,21149.0,1.421505]
[1673953719173,0.34775072,21150.0,21149.0,1.721505]
[1673953719918,0.45945072,21150.0,21149.0,1.721505]
[1673953720446,0.45945072,21150.0,21149.0,1.421505]
[1673953720704,1.72856692,21150.0,21149.0,0.003]
[1673953720958,0.9241301,21150.0,21149.0,0.003]
[1673953721216,3.28656344,21150.0,21149.0,0.003]
[1673953721482,3.28656344,21150.0,21148.0,0.12617763]
[1673953721483,3.0037215,21150.0,21148.0,0.12617763]
[1673953721744,3.0037215,21150.0,21141.0,0.35400456]
[1673953721745,0.00449277,21148.0,21141.0,0.35349621]
[1673953722011,0.14146702,21147.0,21142.0,0.27156366]
[1673953722263,0.35458223,21146.0,21144.0,0.50033768]
[1673953722597,0.32187,21145.0,21144.0,0.50033768]
[1673953723312,0.00449277,21148.0,21144.0,0.50033768]
[1673953723313,0.21311,21147.0,21144.0,0.80033768]
[1673953723831,0.005,21145.0,21144.0,0.82833768]
[1673953724359,0.21311,21147.0,21144.0,0.82833768]
[1673953724360,0.1112,21146.0,21144.0,0.80033768]
[1673953724605,0.32187,21145.0,21144.0,0.98304772]
[1673953725150,0.33087,21145.0,21144.0,0.80033768]
[1673953725645,0.33122954,21145.0,21144.0,0.80033768]
[1673953725880,0.33087,21145.0,21144.0,0.80033768]
[1673953726662,0.33122954,21145.0,21144.0,0.80033768]
[1673953726893,0.33087,21145.0,21144.0,0.98304772]
[1673953730117,0.33087,21145.0,21144.0,0.80033768]
[1673953731127,0.33087,21145.0,21144.0,1.27328468]
[1673953732997,0.33087,21145.0,21144.0,1.74623168]
[1673953733463,0.009,21145.0,21144.0,1.85723168]
[1673953733714,0.009,21145.0,21144.0,2.99003392]
[1673953734986,0.009,21145.0,21144.0,2.61795074]
[1673953736520,0.009,21145.0,21144.0,2.99003392]
[1673953736832,0.009,21145.0,21144.0,3.2432295]
[1673953737090,0.009,21145.0,21144.0,3.5961321]
[1673953737336,0.009,21145.0,21144.0,3.48636273]
[1673953737582,0.009,21145.0,21144.0,3.71669404]
[1673953737841,0.009,21145.0,21144.0,3.38373013]
[1673953738111,0.009,21145.0,21144.0,3.6141041]
[1673953738341,0.009,21145.0,21144.0,3.1716295]
[1673953738556,0.009,21145.0,21144.0,3.38373013]
[1673953738774,0.009,21145.0,21144.0,3.61408474]
[1673953738994,0.009,21145.0,21144.0,3.93595474]
[1673953739252,0.009,21145.0,21144.0,3.61408474]
[1673953739506,0.009,21145.0,21144.0,3.38373013]
[1673953739773,0.009,21145.0,21144.0,3.16683579]
[1673953740028,0.009,21145.0,21144.0,3.53891897]
[1673953740536,0.009,21145.0,21144.0,3.16683579]
[1673953740797,0.009,21145.0,21144.0,2.72434632]
[1673953741047,0.009,21145.0,21144.0,3.16674414]
[1673953741299,0.009,21145.0,21144.0,3.39743174]
[1673953741555,0.009,21145.0,21144.0,3.53851863]
[1673953741851,0.00454625,21145.0,21144.0,3.53851863]
[1673953742375,0.00449277,21148.0,21145.0,0.10301037]
[1673953742626,0.00449277,21148.0,21147.0,0.14104629]
[1673953742880,0.00449277,21148.0,21147.0,2.50622408]
[1673953743204,0.00449277,21148.0,21147.0,2.82809408]
[1673953743397,0.00449277,21148.0,21147.0,2.68703275]
[1673953743653,0.00449277,21148.0,21147.0,2.33324056]
[1673953743874,0.00449277,21148.0,21147.0,2.24467475]
[1673953744414,0.00449277,21148.0,21147.0,3.00797182]
[1673953744669,0.00449277,21148.0,21147.0,3.14903061]
[1673953744918,0.00449277,21148.0,21147.0,2.85355223]
[1673953745178,0.00449277,21148.0,21147.0,2.74498153]
[1673953745681,0.00449277,21148.0,21147.0,2.95655223]
[1673953745935,0.00449277,21148.0,21147.0,3.18562955]
[1673953746717,0.00449277,21148.0,21147.0,2.95655223]
[1673953747262,0.28294032,21149.0,21148.0,0.1]
[1673953747503,0.28294032,21149.0,21148.0,2.12080668]
[1673953748492,0.28294032,21149.0,21148.0,2.20080668]
[1673953748987,0.28294032,21149.0,21148.0,2.50073701]
[1673953749503,0.28294032,21149.0,21148.0,2.64180359]
[1673953749765,0.28294032,21149.0,21148.0,2.20081998]
[1673953750269,0.28294032,21149.0,21148.0,2.64177576]
[1673953750521,0.28294032,21149.0,21148.0,2.78278277]
[1673953750773,0.28294032,21149.0,21148.0,2.57122184]
[1673953751028,0.28294032,21149.0,21148.0,2.50069775]
[1673953751532,0.01332077,21152.0,21149.0,0.4164812]
[1673953751811,0.01332077,21152.0,21151.0,0.0753]
[1673953752091,0.012349,21152.0,21151.0,1.59808169]
[1673953752350,0.012349,21152.0,21151.0,1.89808169]
[1673953752585,0.01404547,21154.0,21152.0,0.1]
[1673953752845,0.01404547,21154.0,21152.0,0.47720169]
[1673953753096,0.33591547,21154.0,21153.0,1.418238]
[1673953753376,0.33591547,21154.0,21153.0,1.61542457]
[1673953753858,0.33591547,21154.0,21153.0,1.418238]
[1673953754131,0.33591547,21154.0,21153.0,0.945492]
[1673953754132,0.41191547,21154.0,21153.0,0.945492]
[1673953754689,0.41191547,21154.0,21153.0,0.948492]
[1673953754916,0.33591547,21154.0,21153.0,0.948492]
[1673953755672,0.33591547,21154.0,21153.0,1.1346944]
[1673953755963,0.33591547,21154.0,21153.0,1.4346944]
[1673953756684,0.33591547,21154.0,21153.0,0.948492]
[1673953757219,0.33591547,21154.0,21153.0,1.248492]
[1673953757469,0.38091547,21154.0,21153.0,1.252492]
[1673953758171,0.45691547,21154.0,21153.0,0.952492]
[1673953758436,0.45684887,21154.0,21153.0,0.952492]
[1673953758973,0.45720841,21154.0,21153.0,0.952492]
[1673953759179,0.45684887,21154.0,21153.0,0.952492]
[1673953759455,0.45684887,21154.0,21153.0,1.252492]
[1673953759709,0.45684887,21154.0,21153.0,1.4690944]
[1673953759962,0.45720841,21154.0,21153.0,1.4690944]
[1673953760439,0.45720841,21154.0,21153.0,1.1690944]
[1673953760728,0.45720841,21154.0,21153.0,0.952492]
[1673953763721,0.45684887,21154.0,21153.0,0.952492]
[1673953763973,0.38084887,21154.0,21153.0,1.252492]
[1673953765210,0.33584887,21154.0,21153.0,1.245492]
[1673953765730,0.42284887,21154.0,21153.0,1.245492]
[1673953766509,0.42384887,21154.0,21153.0,1.245492]
[1673953767327,0.42384887,21154.0,21153.0,1.4613913]
[1673953767542,0.42420841,21154.0,21153.0,1.4613913]
[1673953767794,0.42420841,21154.0,21153.0,1.245492]
[1673953768048,0.42420841,21154.0,21153.0,0.945492]
[1673953768803,0.42384887,21154.0,21153.0,0.945492]
[1673953769048,0.42384887,21154.0,21153.0,1.245492]
[1673953769827,0.42384887,21154.0,21153.0,1.4613913]
[1673953773722,0.42384887,21154.0,21153.0,1.245492]
[1673953776192,0.41394887,21154.0,21153.0,1.68863878]
[1673953776461,0.41394887,21154.0,21153.0,1.82963329]
[1673953777255,0.41394887,21154.0,21153.0,1.68863878]
[1673953778025,0.41394887,21154.0,21153.0,2.1534024]
[1673953778278,0.41394887,21154.0,21153.0,1.82991869]
[1673953779812,0.41394887,21154.0,21153.0,2.29475702]
[1673953780348,0.41394887,21154.0,21153.0,2.04141045]
[1673953780599,0.41394887,21154.0,21153.0,2.29520677]
[1673953780851,0.41394887,21154.0,21153.0,2.29521363]
[1673953781116,0.41394887,21154.0,21153.0,2.04141731]
[1673953781399,0.41394887,21154.0,21153.0,2.29519019]
[1673953781876,0.41394887,21154.0,21153.0,2.04141731]
[1673953782140,0.41394887,21154.0,21153.0,1.82992555]
[1673953783642,0.41394887,21154.0,21153.0,2.04141731]
[1673953783896,0.41394887,21154.0,21153.0,1.82992555]
[1673953785196,0.41394887,21154.0,21153.0,2.77255176]
[1673953785980,0.41394887,21154.0,21153.0,2.518619]
[1673953786204,0.41394887,21154.0,21153.0,2.77251323]
[1673953786562,0.09207887,21154.0,21153.0,2.91326264]
[1673953787000,0.09207887,21154.0,21153.0,2.51859226]
[1673953787787,0.09207887,21154.0,21153.0,2.91324205]
[1673953788305,0.09207887,21154.0,21153.0,2.51858884]
[1673953789141,0.09207887,21154.0,21153.0,2.30709708]
[1673953789352,0.09207887,21154.0,21153.0,2.91319641]
[1673953790360,0.09207887,21154.0,21153.0,2.30708913]
[1673953791410,0.09207887,21154.0,21153.0,3.01275281]
[1673953791666,0.09207887,21154.0,21153.0,3.29474182]
[1673953791935,0.09207887,21154.0,21153.0,2.63996247]
[1673953792178,0.09207887,21154.0,21153.0,2.71045972]
[1673953792434,0.09207887,21154.0,21153.0,2.63177166]
[1673953792700,0.09207887,21154.0,21153.0,2.77298176]
[1673953792988,0.00507887,21154.0,21153.0,2.30705057]
[1673953793237,0.01307887,21154.0,21153.0,2.31905057]
[1673953793725,0.01307887,21154.0,21153.0,2.17784047]
[1673953794770,0.01343841,21154.0,21153.0,0.957492]
[1673953795025,0.13349841,21154.0,21153.0,0.957492]
[1673953795280,0.45536841,21154.0,21153.0,0.957492]
[1673953795544,0.45500887,21154.0,21153.0,0.957492]
[1673953795810,0.44817169,21154.0,21153.0,0.957492]
[1673953796101,0.42090136,21154.0,21153.0,0.957492]
[1673953796627,0.32187,21154.0,21153.0,1.50708087]
[1673953797204,0.32187,21154.0,21153.0,1.257492]
[1673953797728,0.32222954,21154.0,21153.0,0.957492]
[1673953797978,0.39772954,21154.0,21153.0,0.957492]
[1673953798535,0.70993007,21154.0,21153.0,0.012]
[1673953798807,1.76609566,21154.0,21153.0,0.012]
[1673953799065,0.076,21153.0,21152.0,0.472759]
[1673953799318,0.36511,21153.0,21152.0,0.472759]
[1673953800006,0.28911,21153.0,21152.0,0.772759]
[1673953800256,0.28911,21153.0,21152.0,0.472759]
[1673953800499,0.28911,21153.0,21152.0,0.945527]
[1673953800970,0.28911,21153.0,21152.0,0.56943134]
[1673953801499,0.36111,21153.0,21152.0,0.57143134]
[1673953801773,0.36111,21153.0,21152.0,0.87143134]
[1673953802281,0.36111,21153.0,21152.0,0.57143134]
[1673953802538,0.36111,21153.0,21152.0,0.87143134]
[1673953803579,0.36111,21153.0,21152.0,0.57143134]
[1673953803826,0.36111,21153.0,21152.0,0.87143134]
[1673953805942,0.36111,21153.0,21152.0,0.57143134]
[1673953806389,0.28511,21153.0,21152.0,0.57143134]
[1673953806939,0.42664902,21153.0,21152.0,0.57143134]
[1673953807445,0.42664902,21153.0,21152.0,0.87143134]
[1673953807712,0.42664902,21153.0,21152.0,0.57143134]
[1673953807936,0.28511,21153.0,21152.0,0.57143134]
[1673953808445,0.28511,21153.0,21152.0,0.87143134]
[1673953808979,0.28511,21153.0,21152.0,0.57143134]
[1673953809226,0.28511,21153.0,21152.0,0.87143134]
[1673953812054,0.28511,21153.0,21152.0,0.57143134]
[1673953812575,0.28511,21153.0,21152.0,0.87143134]
[1673953814335,0.28511,21153.0,21152.0,0.57143134]
[1673953816361,0.42664902,21153.0,21152.0,0.002]
[1673953816852,0.28511,21153.0,21152.0,0.002]
[1673953817099,0.42664902,21153.0,21152.0,0.002]
[1673953819335,0.42664902,21153.0,21152.0,0.474768]
[1673953819596,0.28511,21153.0,21152.0,0.474768]
[1673953820120,0.28511,21153.0,21152.0,0.774768]
[1673953820623,0.28511,21153.0,21152.0,0.474768]
[1673953821150,0.28511,21153.0,21152.0,0.774768]
[1673953822460,0.28511,21153.0,21152.0,1.247536]
[1673953823481,0.28546954,21153.0,21152.0,1.247536]
[1673953823745,0.28511,21153.0,21152.0,1.247536]
[1673953824516,0.28511,21153.0,21152.0,1.46457945]
[1673953825280,0.28511,21153.0,21152.0,0.947536]
[1673953825534,0.28546954,21153.0,21152.0,0.947536]
[1673953825812,0.28511,21153.0,21152.0,0.947536]
[1673953826074,0.28511,21153.0,21152.0,1.247536]
[1673953831567,0.07191369,21153.0,21152.0,3.12026725]
[1673953832046,0.07191369,21153.0,21152.0,2.65858036]
[1673953832296,0.07191369,21153.0,21152.0,3.12034069]
[1673953832555,0.07191369,21153.0,21152.0,2.87038131]
[1673953832847,0.07191369,21153.0,21152.0,3.12034221]
[1673953833045,0.07191369,21153.0,21152.0,3.13876052]
[1673953833588,0.07191369,21153.0,21152.0,2.67699867]
[1673953834122,0.07191369,21153.0,21152.0,2.16110597]
[1673953834381,0.07191369,21153.0,21152.0,2.51411702]
[1673953834633,0.07191369,21153.0,21152.0,2.30231607]
[1673953835163,0.07191369,21153.0,21152.0,2.67699867]
[1673953835502,0.07191369,21153.0,21152.0,2.30231607]
[1673953835950,0.07227323,21153.0,21152.0,1.87758263]
[1673953836199,0.07191369,21153.0,21152.0,1.71879273]
[1673953836457,0.07191369,21153.0,21152.0,1.57758263]
[1673953837538,0.07191369,21153.0,21152.0,1.87758263]
[1673953838613,0.39350469,21153.0,21152.0,1.87758263]
[1673953839119,0.39350469,21153.0,21152.0,2.01879273]
[1673953839377,0.07191369,21153.0,21152.0,2.01879273]
[1673953841765,0.07191369,21153.0,21152.0,3.58655735]
[1673953842295,0.02929845,21153.0,21152.0,4.39608434]
[1673953842554,0.02929845,21153.0,21152.0,4.20535839]
[1673953843095,0.01307073,21155.0,21152.0,4.20335839]
[1673953843390,0.002,21153.0,21152.0,2.50808263]
[1673953843664,0.01307073,21155.0,21153.0,0.1]
[1673953843945,0.01307073,21155.0,21154.0,2.74488403]
[1673953844204,0.01307073,21155.0,21154.0,2.90380965]
[1673953844205,0.01507073,21155.0,21154.0,2.90380965]
[1673953844465,0.01307073,21155.0,21154.0,2.90380965]
[1673953845014,0.01307073,21155.0,21154.0,3.31780267]
[1673953845784,0.01507073,21155.0,21154.0,3.45887705]
[1673953846033,0.01307073,21155.0,21154.0,3.47713897]
[1673953846283,0.01307073,21155.0,21154.0,3.49113897]
[1673953846807,0.01307073,21155.0,21154.0,3.35006459]
[1673953848874,0.01307073,21155.0,21154.0,3.49113897]
[1673953849654,0.01307073,21155.0,21154.0,3.35006459]
[1673953850732,0.01307073,21155.0,21154.0,3.49113897]
[1673953851268,0.01307073,21155.0,21154.0,3.35006459]
[1673953854901,0.01307073,21155.0,21154.0,3.49113897]
[1673953855198,0.01307073,21155.0,21154.0,2.97682563]
[1673953855430,0.01307073,21155.0,21154.0,2.86512563]
[1673953857271,0.01307073,21155.0,21154.0,2.38792394]
[1673953857791,0.01307073,21155.0,21154.0,3.49043897]
[1673953858312,0.01307073,21155.0,21154.0,3.95256006]
[1673953858578,0.01331564,21157.0,21155.0,0.1]
[1673953858876,0.01331564,21157.0,21156.0,2.23063869]
[1673953859110,0.01331564,21157.0,21156.0,2.90387765]
[1673953859360,0.01331564,21157.0,21156.0,2.53063869]
[1673953859899,0.01331564,21157.0,21156.0,2.41883869]
[1673953860933,0.01331564,21157.0,21156.0,2.42483869]
[1673953862228,0.45496664,21157.0,21156.0,1.424037]
[1673953862761,0.45496664,21157.0,21156.0,0.951358]
[1673953865925,0.56676664,21157.0,21156.0,0.006]
[1673953866212,1.14320869,21157.0,21156.0,0.006]
[1673953866472,1.9473547,21157.0,21156.0,0.006]
[1673953866787,1.90708821,21157.0,21156.0,0.006]
[1673953867010,2.11925345,21157.0,21156.0,0.006]
[1673953867251,1.72451941,21157.0,21154.0,0.01826192]
[1673953867520,0.64247492,21157.0,21156.0,0.007]
[1673953867776,2.02147235,21157.0,21156.0,0.007]
[1673953868327,2.00747235,21157.0,21154.0,0.46639097]
[1673953868563,0.45993089,21156.0,21155.0,0.1411866]
[1673953869341,0.318448,21156.0,21155.0,0.1411866]
[1673953870095,0.332448,21156.0,21155.0,0.6208876]
[1673953870600,0.332448,21156.0,21155.0,0.9208876]
[1673953870866,0.332448,21156.0,21155.0,0.6208876]
[1673953872455,0.332448,21156.0,21155.0,1.3935886]
[1673953873520,0.332448,21156.0,21155.0,1.0935886]
[1673953874802,0.332448,21156.0,21155.0,1.3935886]
[1673953876365,0.47393089,21156.0,21155.0,0.952402]
[1673953876622,0.332448,21156.0,21155.0,1.252402]
[1673953878410,0.220648,21156.0,21155.0,1.252402]
[1673953880485,0.014,21156.0,21155.0,1.252402]
[1673953880739,0.0139304,21156.0,21155.0,1.252402]
[1673953881002,0.0139304,21156.0,21155.0,1.46862803]
[1673953882542,0.0139304,21156.0,21155.0,1.252402]
[1673953883331,0.3355214,21156.0,21155.0,1.252402]
[1673953884378,0.0139304,21156.0,21155.0,1.252402]
[1673953885158,0.2205784,21156.0,21155.0,1.252402]
[1673953885920,0.0139304,21156.0,21155.0,1.252402]
[1673953886182,0.0139304,21156.0,21155.0,1.56888355]
[1673953886475,0.3355214,21156.0,21155.0,1.56888355]
[1673953889341,0.33588094,21156.0,21155.0,1.252402]
[1673953889865,0.3355214,21156.0,21155.0,1.252402]
[1673953890643,0.33588094,21156.0,21155.0,1.252402]
[1673953890919,0.3355214,21156.0,21155.0,0.952402]
[1673953891181,0.4473214,21156.0,21155.0,0.952402]
[1673953891483,0.5583214,21156.0,21155.0,0.952402]
[1673953891734,0.55868094,21156.0,21155.0,0.952402]
[1673953892828,0.70016383,21156.0,21155.0,0.952402]
[1673953894160,0.55868094,21156.0,21155.0,0.479701]
[1673953894445,0.70016383,21156.0,21155.0,0.479701]
[1673953895244,0.69980429,21156.0,21155.0,0.479701]
[1673953895525,0.69980429,21156.0,21155.0,1.34946859]
[1673953896345,0.69980429,21156.0,21155.0,1.252402]
[1673953896619,0.69980429,21156.0,21155.0,0.952402]
[1673953896915,0.5583214,21156.0,21155.0,0.952402]
[1673953897174,0.69980429,21156.0,21155.0,0.952402]
[1673953897987,0.69980429,21156.0,21155.0,0.942402]
[1673953898247,1.6453975,21156.0,21155.0,0.942402]
[1673953898788,1.64575704,21156.0,21155.0,0.942402]
[1673953899044,1.85792228,21156.0,21155.0,0.942402]
[1673953899318,0.70016383,21156.0,21155.0,0.942402]
[1673953899820,1.53359409,21156.0,21155.0,1.08573879]
[1673953900073,1.53359409,21156.0,21155.0,1.38573879]
[1673953900074,0.4465214,21156.0,21155.0,1.38573879]
[1673953900590,0.4465214,21156.0,21155.0,0.942402]
[1673953900873,0.4465214,21156.0,21155.0,1.242402]
[1673953901628,0.58800429,21156.0,21155.0,1.242402]
[1673953901884,1.53358574,21156.0,21155.0,1.242402]
[1673953902419,1.53358574,21156.0,21155.0,0.942402]
[1673953902686,0.58800429,21156.0,21155.0,0.942402]
[1673953903277,0.80016953,21156.0,21155.0,0.942402]
[1673953903465,0.58800429,21156.0,21155.0,0.942402]
[1673953903729,1.53357087,21156.0,21155.0,0.942402]
[1673953905546,1.74573611,21156.0,21155.0,0.942402]
[1673953905846,0.58800429,21156.0,21155.0,0.942402]
[1673953906087,0.4465214,21156.0,21155.0,0.942402]
[1673953906592,0.58800429,21156.0,21155.0,0.942402]
[1673953906852,1.53358417,21156.0,21155.0,0.942402]
[1673953909895,0.58800429,21156.0,21155.0,0.942402]
[1673953910151,0.4465214,21156.0,21155.0,1.242402]
[1673953910419,0.4465214,21156.0,21155.0,1.46807595]
[1673953910674,0.3355214,21156.0,21155.0,1.46807595]
[1673953910925,0.0139304,21156.0,21155.0,1.46807595]
[1673953911188,0.3355214,21156.0,21155.0,1.242402]
[1673953911437,0.33588094,21156.0,21155.0,1.242402]
[1673953911693,0.3355214,21156.0,21155.0,1.242402]
[1673953915302,0.3355214,21156.0,21155.0,1.242402]
[1673953916069,0.33588094,21156.0,21155.0,1.242402]
[1673953916358,0.3355214,21156.0,21155.0,1.242402]
[1673953923088,0.3355214,21156.0,21155.0,1.242402]
[1673953926734,0.3355214,21156.0,21155.0,0.86322383]
[1673953928531,0.3331574,21156.0,21155.0,0.86322383]
[1673953929600,1.63234163,21156.0,21155.0,0.56322383]
[1673953929870,1.6323554,21156.0,21155.0,0.56322383]
[1673953930414,1.77416609,21156.0,21155.0,0.56322383]
[1673953930663,1.77416609,21156.0,21155.0,0.007]
[1673953930664,2.70188601,21156.0,21155.0,0.007]
[1673953930932,2.53005197,21156.0,21155.0,0.007]
[1673953931192,4.00043556,21156.0,21155.0,0.007]
[1673953931998,4.00043556,21156.0,21154.0,0.01551973]
[1673953931999,0.1,21155.0,21154.0,0.01551973]
[1673953932259,3.29992149,21155.0,21154.0,0.01551973]
[1673953932521,4.79951467,21155.0,21154.0,0.01551973]
[1673953932839,6.21784855,21155.0,21154.0,0.01551973]
[1673953933104,4.64896907,21155.0,21154.0,0.01551973]
[1673953933401,5.2719547,21155.0,21154.0,0.01551973]
[1673953933669,5.12167891,21155.0,21154.0,0.01551973]
[1673953933921,6.69068252,21155.0,21154.0,0.01551973]
[1673953934178,6.71868252,21155.0,21154.0,0.01551973]
[1673953934619,6.69068252,21155.0,21154.0,0.01551973]
[1673953934621,6.21658035,21155.0,21154.0,0.01551973]
[1673953934876,5.31146277,21155.0,21154.0,0.01551973]
[1673953935165,4.31190303,21155.0,21154.0,0.01551973]
[1673953935439,4.7365437,21155.0,21154.0,0.01551973]
[1673953935730,5.21064587,21155.0,21154.0,0.01551973]
[1673953936756,4.54144587,21155.0,21154.0,0.01551973]
[1673953937040,4.54144587,21155.0,21154.0,0.01051973]
[1673953937041,3.9783437,21155.0,21154.0,0.01051973]
[1673953937296,4.0693437,21155.0,21154.0,0.01051973]
[1673953937601,4.0693437,21155.0,21146.0,0.00550418]
[1673953937602,0.00256894,21153.0,21146.0,0.00550418]
[1673953937854,0.1118,21147.0,21146.0,0.00550418]
[1673953938119,0.318448,21147.0,21146.0,0.00550418]
[1673953938425,0.430248,21147.0,21146.0,0.00550418]
[1673953938714,0.57164388,21147.0,21146.0,0.00550418]
[1673953938990,0.67164388,21147.0,21146.0,0.00550418]
[1673953939238,0.530248,21147.0,21146.0,0.00550418]
[1673953939498,0.620248,21147.0,21146.0,0.00550418]
[1673953940045,0.621248,21147.0,21146.0,0.00550418]
[1673953941107,0.80403473,21147.0,21146.0,0.00550418]
[1673953941364,0.80439427,21147.0,21146.0,0.00550418]
[1673953941623,1.65243401,21147.0,21146.0,0.00550418]
[1673953942916,1.56143401,21147.0,21146.0,0.00550418]
[1673953943213,1.65243401,21147.0,21146.0,0.00550418]
[1673953944528,1.09448754,21147.0,21146.0,0.00550418]
[1673953944794,0.99448754,21147.0,21146.0,0.00550418]
[1673953945083,0.52160754,21147.0,21146.0,0.00550418]
[1673953945881,0.43060754,21147.0,21146.0,0.00550418]
[1673953946135,0.52160754,21147.0,21146.0,0.00550418]
[1673953946695,0.521248,21147.0,21146.0,0.00550418]
[1673953946957,0.409448,21147.0,21146.0,0.00550418]
[1673953947742,0.297648,21147.0,21146.0,0.00550418]
[1673953948496,0.33239427,21147.0,21146.0,0.00550418]
[1673953948749,0.42439427,21147.0,21146.0,0.00550418]
[1673953949039,0.298648,21147.0,21146.0,0.00550418]
[1673953950539,0.29900754,21147.0,21146.0,0.00550418]
[1673953951050,0.41080754,21147.0,21146.0,0.00550418]
[1673953951321,1.85192728,21147.0,21146.0,0.00550418]
[1673953951613,1.96372728,21147.0,21146.0,0.00550418]
[1673953951866,0.1,21146.0,21145.0,0.00358288]
[1673953952128,2.07795474,21146.0,21145.0,0.00358288]
[1673953953445,1.83355474,21146.0,21145.0,0.00358288]
[1673953954504,1.458395,21146.0,21145.0,0.00358288]
[1673953954984,0.985493,21146.0,21145.0,0.00358288]
[1673953955243,1.320993,21146.0,21145.0,0.00358288]
[1673953955557,1.50910625,21146.0,21145.0,0.00358288]
[1673953955747,1.98200825,21146.0,21145.0,0.00358288]
[1673953956000,1.793895,21146.0,21145.0,0.00358288]
[1673953956797,1.681995,21146.0,21145.0,0.00358288]
[1673953958819,1.690495,21146.0,21145.0,0.00358288]
[1673953962585,1.590495,21146.0,21145.0,0.00358288]
[1673953964630,1.96565474,21146.0,21145.0,0.00358288]
[1673953965145,2.10705062,21146.0,21145.0,0.00358288]
[1673953965396,2.46723019,21146.0,21145.0,0.00358288]
[1673953965975,2.791024,21146.0,21145.0,0.00358288]
[1673953966195,3.73725364,21146.0,21145.0,0.00358288]
[1673953966452,0.1,21145.0,21144.0,0.00464741]
[1673953966709,2.09955604,21145.0,21144.0,0.00464741]
[1673953966991,3.2578905,21145.0,21144.0,0.00464741]
[1673953967242,2.78378833,21145.0,21144.0,0.00464741]
[1673953967505,2.64283246,21145.0,21144.0,0.00464741]
[1673953967754,1.62555063,21145.0,21144.0,0.00464741]
[1673953968005,2.87488563,21145.0,21144.0,0.00464741]
[1673953968551,4.08749231,21145.0,21144.0,0.00464741]
[1673953968830,3.39061129,21145.0,21144.0,0.00464741]
[1673953969077,3.34009009,21145.0,21144.0,0.00464741]
[1673953969900,3.6930775,21145.0,21144.0,0.00464741]
[1673953971179,3.34009009,21145.0,21144.0,0.00464741]
[1673953971931,0.00413814,21142.0,21140.0,0.00647189]
[1673953972189,0.321591,21141.0,21140.0,0.00647189]
[1673953973963,0.321591,21141.0,21140.0,0.30647189]
[1673953974211,0.321591,21141.0,21140.0,0.00647189]
[1673953974456,0.328591,21141.0,21140.0,0.00647189]
[1673953975477,0.32895054,21141.0,21140.0,0.00647189]
[1673953977004,0.47024379,21141.0,21140.0,0.00647189]
[1673953977492,0.60245794,21141.0,21140.0,0.00647189]
[1673953978017,1.54873581,21141.0,21140.0,0.00647189]
[1673953978275,1.41652166,21141.0,21140.0,0.00647189]
[1673953978529,1.41616212,21141.0,21140.0,0.00647189]
[1673953978789,0.46988425,21141.0,21140.0,0.00647189]
[1673953979283,0.328591,21141.0,21140.0,0.00647189]
[1673953979527,0.32895054,21141.0,21140.0,0.00647189]
[1673953982337,0.47024379,21141.0,21140.0,0.00647189]
[1673953983298,0.32895054,21141.0,21140.0,0.00647189]
[1673953983540,0.32895054,21141.0,21140.0,0.00147189]
[1673953983794,0.47024379,21141.0,21140.0,0.00147189]
[1673953984284,1.41651042,21141.0,21140.0,0.00147189]
[1673953986327,1.41650055,21141.0,21140.0,0.00147189]
[1673953987050,1.41650062,21141.0,21140.0,0.00147189]
[1673953987367,1.85528033,21141.0,21140.0,0.00147189]
[1673953987565,2.40929284,21141.0,21140.0,0.00147189]
[1673953988409,3.25046658,21141.0,21140.0,0.00147189]
[1673953988672,2.96630684,21141.0,21140.0,0.00147189]
[1673953989205,2.38623388,21141.0,21140.0,0.00147189]
[1673953989723,2.74033915,21141.0,21140.0,0.00147189]
[1673953991040,2.29523388,21141.0,21140.0,0.00147189]
[1673953991323,2.64942082,21141.0,21140.0,0.00147189]
[1673953991583,2.38623388,21141.0,21140.0,0.00147189]
[1673953991830,2.74186302,21141.0,21140.0,0.00147189]
[1673953992095,2.83286302,21141.0,21140.0,0.00147189]
[1673953992637,3.18699399,21141.0,21140.0,0.00147189]
[1673953992920,3.31437702,21141.0,21140.0,0.00147189]
[1673953995038,3.68953676,21141.0,21140.0,0.00147189]
[1673953995559,0.12069828,21139.0,21138.0,0.00698339]
[1673953995806,2.71687771,21139.0,21138.0,0.00698339]
[1673953996047,3.15899022,21139.0,21138.0,0.00698339]
[1673953996538,3.58401907,21139.0,21138.0,0.00698339]
[1673953997290,3.67501907,21139.0,21138.0,0.00698339]
[1673953997543,3.89765043,21139.0,21138.0,0.00698339]
[1673953997789,3.47262158,21139.0,21138.0,0.00698339]
[1673953998300,3.89765043,21139.0,21138.0,0.00698339]
[1673953998544,3.89511529,21139.0,21138.0,0.00698339]
[1673953999577,3.80411529,21139.0,21138.0,0.00698339]
[1673953999816,3.89611529,21139.0,21138.0,0.00698339]
[1673954000056,3.80411529,21139.0,21138.0,0.00698339]
[1673954000309,3.89611529,21139.0,21138.0,0.00698339]
[1673954001061,3.47108644,21139.0,21138.0,0.00698339]
[1673954002053,4.00791529,21139.0,21138.0,0.00698339]
[1673954002295,3.58288644,21139.0,21138.0,0.00698339]
[1673954003061,4.00791529,21139.0,21138.0,0.00698339]
[1673954003838,3.58288644,21139.0,21138.0,0.00698339]
[1673954004106,4.00791529,21139.0,21138.0,0.00698339]